[Event "*** Titled Tuesday Blitz"]
[Site "Chess.com"]
[Date "2020.10.20"]
[Round "10"]
[White "tlomigtlis"]
[Black "orestn"]
[Result "1-0"]
[WhiteElo "2573"]
[BlackElo "2433"]
[TimeControl "180+1"]
[EndTime "12:00:21 PDT"]
[Termination "tlomigtlis won on time"]

1. d4 {[%clk 0:03:00.9]} 1... d5 {[%clk 0:02:59.7]} 2. c4 {[%clk 0:03:01]} 2...
e6 {[%clk 0:03:00.1]} 3. Nc3 {[%clk 0:03:00.9]} 3... c5 {[%clk 0:03:00.2]} 4.
cxd5 {[%clk 0:03:00.3]} 4... exd5 {[%clk 0:03:01.1]} 5. Nf3 {[%clk 0:03:00.1]}
5... Nc6 {[%clk 0:03:01.2]} 6. Bf4 {[%clk 0:02:59.1]} 6... c4 {[%clk 0:02:59.3]}
7. e3 {[%clk 0:02:57.2]} 7... Bb4 {[%clk 0:02:59.6]} 8. Be2 {[%clk 0:02:56.2]}
8... Nf6 {[%clk 0:02:59.6]} 9. O-O {[%clk 0:02:56.2]} 9... O-O {[%clk
0:02:58.9]} 10. Ne5 {[%clk 0:02:56.4]} 10... Bf5 {[%clk 0:02:51.7]} 11. Bf3
{[%clk 0:02:53.8]} 11... Bxc3 {[%clk 0:02:49.5]} 12. bxc3 {[%clk 0:02:54.7]}
12... Be4 {[%clk 0:02:49]} 13. Ng4 {[%clk 0:02:44.7]} 13... Nxg4 {[%clk
0:02:45.9]} 14. Bxe4 {[%clk 0:02:40.7]} 14... dxe4 {[%clk 0:02:45.1]} 15. Qxg4
{[%clk 0:02:40.2]} 15... Qd5 {[%clk 0:02:44.5]} 16. a4 {[%clk 0:02:36.8]} 16...
Na5 {[%clk 0:02:36.4]} 17. Bh6 {[%clk 0:02:23.7]} 17... g6 {[%clk 0:02:20.4]}
18. Bxf8 {[%clk 0:02:13.9]} 18... Rxf8 {[%clk 0:02:20]} 19. f3 {[%clk
0:02:13.7]} 19... Re8 {[%clk 0:02:04]} 20. fxe4 {[%clk 0:02:07.8]} 20... Rxe4
{[%clk 0:02:03.5]} 21. Rf4 {[%clk 0:02:02.1]} 21... Rxe3 {[%clk 0:01:51.5]} 22.
Raf1 {[%clk 0:01:55]} 22... Re7 {[%clk 0:01:47.3]} 23. Qh4 {[%clk 0:01:44.7]}
23... Qd7 {[%clk 0:01:36.5]} 24. Qg5 {[%clk 0:01:37]} 24... Nb3 {[%clk
0:01:34.2]} 25. h4 {[%clk 0:01:36.1]} 25... Nd2 {[%clk 0:01:30.5]} 26. Rd1
{[%clk 0:01:26]} 26... Ne4 {[%clk 0:01:29.9]} 27. Qa5 {[%clk 0:01:24.9]} 27...
b6 {[%clk 0:01:25.9]} 28. Qb4 {[%clk 0:01:20.6]} 28... f5 {[%clk 0:01:15.8]} 29.
Qxc4+ {[%clk 0:01:17.6]} 29... Kg7 {[%clk 0:01:16.4]} 30. d5 {[%clk 0:01:13.2]}
30... Nd6 {[%clk 0:01:12.5]} 31. Qd4+ {[%clk 0:01:12.1]} 31... Kg8 {[%clk
0:01:12.2]} 32. Rdf1 {[%clk 0:01:05.8]} 32... Qe8 {[%clk 0:01:11.7]} 33. Qf6
{[%clk 0:01:01.5]} 33... Qd7 {[%clk 0:01:10.6]} 34. h5 {[%clk 0:00:57.8]} 34...
Rf7 {[%clk 0:01:00]} 35. Qe6 {[%clk 0:00:43.3]} 35... Qxe6 {[%clk 0:00:57.6]}
36. dxe6 {[%clk 0:00:44.2]} 36... Re7 {[%clk 0:00:57.7]} 37. Rd4 {[%clk
0:00:41.7]} 37... Ne4 {[%clk 0:00:54.9]} 38. Rd8+ {[%clk 0:00:39.8]} 38... Kg7
{[%clk 0:00:54.9]} 39. Rd7 {[%clk 0:00:39.3]} 39... Kf6 {[%clk 0:00:55.1]} 40.
a5 {[%clk 0:00:23.3]} 40... Kxe6 {[%clk 0:00:48.5]} 41. Rxe7+ {[%clk 0:00:19.7]}
41... Kxe7 {[%clk 0:00:48.8]} 42. axb6 {[%clk 0:00:19.3]} 42... axb6 {[%clk
0:00:49]} 43. Rb1 {[%clk 0:00:16.5]} 43... Nxc3 {[%clk 0:00:46.3]} 44. Rxb6
{[%clk 0:00:16.7]} 44... gxh5 {[%clk 0:00:41.9]} 45. Rh6 {[%clk 0:00:15.7]}
45... Ne4 {[%clk 0:00:37.1]} 46. Rxh5 {[%clk 0:00:13.5]} 46... Kf6 {[%clk
0:00:35.5]} 47. Rxh7 {[%clk 0:00:13.5]} 47... Kg5 {[%clk 0:00:32.9]} 48. Ra7
{[%clk 0:00:13.4]} 48... Kf4 {[%clk 0:00:31.8]} 49. Kh2 {[%clk 0:00:13.7]} 49...
Kg5 {[%clk 0:00:31.2]} 50. Kh3 {[%clk 0:00:13.2]} 50... Nf2+ {[%clk 0:00:30.4]}
51. Kg3 {[%clk 0:00:13]} 51... Ne4+ {[%clk 0:00:30.9]} 52. Kf3 {[%clk
0:00:13.3]} 52... Nd2+ {[%clk 0:00:30.9]} 53. Ke3 {[%clk 0:00:13.7]} 53... Ne4
{[%clk 0:00:31.3]} 54. Ra5 {[%clk 0:00:12.7]} 54... Kg4 {[%clk 0:00:28.6]} 55.
Ke2 {[%clk 0:00:07.3]} 55... Kf4 {[%clk 0:00:27.8]} 56. Ra8 {[%clk 0:00:04]}
56... Nc3+ {[%clk 0:00:26.6]} 57. Kf2 {[%clk 0:00:04.9]} 57... Ne4+ {[%clk
0:00:26.5]} 58. Kg1 {[%clk 0:00:05.4]} 58... Ng3 {[%clk 0:00:25]} 59. Ra3 {[%clk
0:00:06.3]} 59... Ne4 {[%clk 0:00:22.7]} 60. Kh2 {[%clk 0:00:05.2]} 60... Kg4
{[%clk 0:00:21.8]} 61. Ra4 {[%clk 0:00:01.7]} 61... Kf4 {[%clk 0:00:21.5]} 62.
Ra8 {[%clk 0:00:02.6]} 62... Nf2 {[%clk 0:00:20.5]} 63. Rg8 {[%clk 0:00:03]}
63... Ng4+ {[%clk 0:00:20.3]} 64. Kh3 {[%clk 0:00:03.5]} 64... Nf2+ {[%clk
0:00:20.3]} 65. Kh4 {[%clk 0:00:03.9]} 65... Ne4 {[%clk 0:00:18.9]} 66. g3+
{[%clk 0:00:04.1]} 66... Ke5 {[%clk 0:00:18.2]} 67. Rf8 {[%clk 0:00:04.2]} 67...
Nf6 {[%clk 0:00:16.3]} 68. Kg5 {[%clk 0:00:03.7]} 68... Ne4+ {[%clk 0:00:16.2]}
69. Kg6 {[%clk 0:00:03.2]} 69... Nxg3 {[%clk 0:00:16.2]} 70. Re8+ {[%clk
0:00:03.5]} 70... Kf4 {[%clk 0:00:16]} 71. Rf8 {[%clk 0:00:03.4]} 71... Kg4
{[%clk 0:00:15.9]} 72. Ra8 {[%clk 0:00:03.7]} 72... f4 {[%clk 0:00:16]} 73. Ra4
{[%clk 0:00:04.3]} 73... Kf3 {[%clk 0:00:16]} 74. Kg5 {[%clk 0:00:05.2]} 74...
Ne4+ {[%clk 0:00:15.6]} 75. Kf5 {[%clk 0:00:05.7]} 75... Ng3+ {[%clk 0:00:15.7]}
76. Ke5 {[%clk 0:00:06.1]} 76... Ne2 {[%clk 0:00:16.6]} 77. Ra3+ {[%clk
0:00:06.3]} 77... Kf2 {[%clk 0:00:16.2]} 78. Ke4 {[%clk 0:00:06.9]} 78... Kg2
{[%clk 0:00:14.2]} 79. Rf3 {[%clk 0:00:05.6]} 79... Ng3+ {[%clk 0:00:11.8]} 80.
Kxf4 {[%clk 0:00:05.4]} 80... Ne2+ {[%clk 0:00:11.5]} 81. Kg4 {[%clk 0:00:05.7]}
81... Ng1 {[%clk 0:00:09.6]} 82. Ra3 {[%clk 0:00:06]} 82... Kf1 {[%clk
0:00:09.2]} 83. Ra2 {[%clk 0:00:06.3]} 83... Ke1 {[%clk 0:00:06.6]} 84. Kg3
{[%clk 0:00:06.1]} 84... Ne2+ {[%clk 0:00:06.3]} 85. Kf3 {[%clk 0:00:06.5]}
85... Nc1 {[%clk 0:00:05.7]} 86. Rb2 {[%clk 0:00:06.9]} 86... Kd1 {[%clk
0:00:05]} 87. Ke3 {[%clk 0:00:07.2]} 87... Ke1 {[%clk 0:00:03.5]} 88. Rd2 {[%clk
0:00:04.9]} 88... Nb3 {[%clk 0:00:02.5]} 89. Rc2 {[%clk 0:00:05.3]} 89... Kd1
{[%clk 0:00:02.4]} 90. Rh2 {[%clk 0:00:05.1]} 90... Nc1 {[%clk 0:00:02.1]} 91.
Kd4 {[%clk 0:00:05.3]} 91... Ne2+ {[%clk 0:00:01.7]} 92. Kd3 {[%clk 0:00:05.7]}
92... Nc1+ {[%clk 0:00:01.8]} 93. Ke3 {[%clk 0:00:05.6]} 93... Nb3 {[%clk
0:00:01.4]} 94. Rb2 {[%clk 0:00:05.5]} 94... Nc1 {[%clk 0:00:01.2]} 95. Rd2+
{[%clk 0:00:05.9]} 1-0

[Event "*** Titled Tuesday Blitz"]
[Site "Chess.com"]
[Date "2020.10.20"]
[Round "10"]
[White "sjam6687"]
[Black "talman67"]
[Result "1/2-1/2"]
[WhiteElo "2659"]
[BlackElo "2537"]
[TimeControl "180+1"]
[EndTime "12:00:22 PDT"]
[Termination "Game drawn - insufficient material"]

1. d4 {[%clk 0:02:59.3]} 1... Nf6 {[%clk 0:02:59.9]} 2. c4 {[%clk 0:02:55.8]}
2... e6 {[%clk 0:03:00.3]} 3. Nc3 {[%clk 0:02:55.9]} 3... Bb4 {[%clk 0:03:00.8]}
4. e3 {[%clk 0:02:55.4]} 4... O-O {[%clk 0:02:59.9]} 5. Ne2 {[%clk 0:02:55.2]}
5... Re8 {[%clk 0:02:59.7]} 6. a3 {[%clk 0:02:52.2]} 6... Bf8 {[%clk 0:03:00.1]}
7. Nf4 {[%clk 0:02:41.9]} 7... d5 {[%clk 0:02:52.4]} 8. Bd3 {[%clk 0:02:19.3]}
8... c5 {[%clk 0:02:45.4]} 9. O-O {[%clk 0:02:09.8]} 9... dxc4 {[%clk
0:02:24.3]} 10. Bxc4 {[%clk 0:01:58.7]} 10... Nc6 {[%clk 0:02:24.7]} 11. dxc5
{[%clk 0:01:56.4]} 11... Bxc5 {[%clk 0:02:23]} 12. b4 {[%clk 0:01:56.1]} 12...
Be7 {[%clk 0:02:13]} 13. Bb2 {[%clk 0:01:52.5]} 13... Bd7 {[%clk 0:02:08.8]} 14.
Nb5 {[%clk 0:01:34.9]} 14... Rc8 {[%clk 0:01:58.6]} 15. Be2 {[%clk 0:01:33.5]}
15... e5 {[%clk 0:01:43.8]} 16. Nd5 {[%clk 0:01:24.6]} 16... Nxd5 {[%clk
0:01:42.1]} 17. Qxd5 {[%clk 0:01:25.5]} 17... Be6 {[%clk 0:01:41.6]} 18. Qxd8
{[%clk 0:01:16.8]} 18... Rexd8 {[%clk 0:01:42.5]} 19. Rfd1 {[%clk 0:01:16.6]}
19... a6 {[%clk 0:01:34.4]} 20. Nc3 {[%clk 0:01:14.1]} 20... Bb3 {[%clk
0:01:25.1]} 21. Rxd8+ {[%clk 0:01:11.6]} 21... Rxd8 {[%clk 0:01:26]} 22. Kf1
{[%clk 0:00:48.6]} 22... f5 {[%clk 0:01:13.1]} 23. Ke1 {[%clk 0:00:46.6]} 23...
e4 {[%clk 0:01:11.1]} 24. Rc1 {[%clk 0:00:39.9]} 24... Bf6 {[%clk 0:00:51.9]}
25. f4 {[%clk 0:00:39.7]} 25... Kf7 {[%clk 0:00:30.3]} 26. Ba1 {[%clk
0:00:35.9]} 26... g5 {[%clk 0:00:24.2]} 27. Nd1 {[%clk 0:00:30.7]} 27... Bxa1
{[%clk 0:00:16.1]} 28. Rxa1 {[%clk 0:00:31.6]} 28... gxf4 {[%clk 0:00:17]} 29.
exf4 {[%clk 0:00:31.9]} 29... Nd4 {[%clk 0:00:16.6]} 30. Ne3 {[%clk 0:00:32.2]}
30... Nc2+ {[%clk 0:00:11.9]} 31. Nxc2 {[%clk 0:00:31.3]} 31... Bxc2 {[%clk
0:00:12.8]} 32. Rc1 {[%clk 0:00:31.6]} 32... Ba4 {[%clk 0:00:11.9]} 33. Rc7+
{[%clk 0:00:30.2]} 33... Rd7 {[%clk 0:00:12.4]} 34. Rxd7+ {[%clk 0:00:29.6]}
34... Bxd7 {[%clk 0:00:13.3]} 35. Kd2 {[%clk 0:00:29.6]} 35... Ke6 {[%clk
0:00:13.1]} 36. Bc4+ {[%clk 0:00:28.9]} 36... Kd6 {[%clk 0:00:12]} 37. Ke3
{[%clk 0:00:29]} 37... h6 {[%clk 0:00:10.4]} 38. g3 {[%clk 0:00:22.1]} 38... Be8
{[%clk 0:00:09.6]} 39. Be2 {[%clk 0:00:18.3]} 39... Bd7 {[%clk 0:00:09.7]} 40.
Kd4 {[%clk 0:00:18.2]} 40... Bc6 {[%clk 0:00:09.3]} 41. Bh5 {[%clk 0:00:17.6]}
41... Bd7 {[%clk 0:00:09.3]} 42. Bg6 {[%clk 0:00:17.3]} 42... b6 {[%clk
0:00:09.3]} 43. Bf7 {[%clk 0:00:14.8]} 43... a5 {[%clk 0:00:09.4]} 44. Bc4
{[%clk 0:00:14.1]} 44... axb4 {[%clk 0:00:09.4]} 45. axb4 {[%clk 0:00:15]} 45...
Bc8 {[%clk 0:00:10]} 46. h3 {[%clk 0:00:14.2]} 46... Be6 {[%clk 0:00:10]} 47.
Be2 {[%clk 0:00:13.3]} 47... Bd7 {[%clk 0:00:08.9]} 48. g4 {[%clk 0:00:12.9]}
48... Be6 {[%clk 0:00:04.7]} 49. Ke3 {[%clk 0:00:11.6]} 49... Bd7 {[%clk
0:00:02.8]} 50. g5 {[%clk 0:00:09.7]} 50... hxg5 {[%clk 0:00:03.7]} 51. fxg5
{[%clk 0:00:10.6]} 51... Ke5 {[%clk 0:00:04.3]} 52. h4 {[%clk 0:00:07.7]} 52...
f4+ {[%clk 0:00:05.2]} 53. Kf2 {[%clk 0:00:07.5]} 53... f3 {[%clk 0:00:05.2]}
54. Bxf3 {[%clk 0:00:07.2]} 54... exf3 {[%clk 0:00:06.1]} 55. Kxf3 {[%clk
0:00:08.1]} 55... Kf5 {[%clk 0:00:06.4]} 56. Ke3 {[%clk 0:00:07.7]} 56... Be6
{[%clk 0:00:06.1]} 57. Kd4 {[%clk 0:00:06.8]} 57... b5 {[%clk 0:00:06.6]} 58.
Kc5 {[%clk 0:00:05.8]} 58... Bc4 {[%clk 0:00:06.9]} 59. Kc6 {[%clk 0:00:05.4]}
59... Kg6 {[%clk 0:00:07]} 60. Kc5 {[%clk 0:00:05.3]} 60... Kf5 {[%clk
0:00:07.6]} 61. Kc6 {[%clk 0:00:05.2]} 61... Be2 {[%clk 0:00:07.6]} 62. Kc5
{[%clk 0:00:05]} 62... Ke6 {[%clk 0:00:07]} 63. Kc6 {[%clk 0:00:04.7]} 63... Ke5
{[%clk 0:00:06.5]} 64. Kc5 {[%clk 0:00:04.5]} 64... Kf5 {[%clk 0:00:07]} 65. Kc6
{[%clk 0:00:04.2]} 65... Ke6 {[%clk 0:00:07.6]} 66. Kc5 {[%clk 0:00:04.3]} 66...
Ke5 {[%clk 0:00:08.2]} 67. Kc6 {[%clk 0:00:04.1]} 67... Kf5 {[%clk 0:00:07.8]}
68. Kc5 {[%clk 0:00:04]} 68... Kg6 {[%clk 0:00:08.3]} 69. Kc6 {[%clk 0:00:04]}
69... Kh5 {[%clk 0:00:08.6]} 70. Kc5 {[%clk 0:00:04.2]} 70... Kg6 {[%clk
0:00:08.6]} 71. Kc6 {[%clk 0:00:03.7]} 71... Bc4 {[%clk 0:00:09.1]} 72. Kc5
{[%clk 0:00:03.7]} 72... Kh5 {[%clk 0:00:09.3]} 73. Kc6 {[%clk 0:00:04.3]} 73...
Kxh4 {[%clk 0:00:09.1]} 74. g6 {[%clk 0:00:04.1]} 74... Kg5 {[%clk 0:00:09.4]}
75. g7 {[%clk 0:00:05]} 75... Kg6 {[%clk 0:00:09.7]} 76. g8=Q+ {[%clk
0:00:05.9]} 76... Bxg8 {[%clk 0:00:08.6]} 77. Kxb5 {[%clk 0:00:06.8]} 77... Kf6
{[%clk 0:00:08.8]} 78. Ka5 {[%clk 0:00:07.7]} 78... Bd5 {[%clk 0:00:08.8]} 79.
b5 {[%clk 0:00:08.6]} 79... Ke6 {[%clk 0:00:09.2]} 80. b6 {[%clk 0:00:09.5]}
80... Kd7 {[%clk 0:00:09.7]} 81. b7 {[%clk 0:00:10.4]} 81... Bxb7 {[%clk
0:00:10]} 1/2-1/2

[Event "*** Titled Tuesday Blitz"]
[Site "Chess.com"]
[Date "2020.10.20"]
[Round "10"]
[White "Fy_Rakotomaharo"]
[Black "Me_ch_an"]
[Result "1-0"]
[WhiteElo "2650"]
[BlackElo "2393"]
[TimeControl "180+1"]
[EndTime "12:00:47 PDT"]
[Termination "Fy_Rakotomaharo won on time"]

1. d4 {[%clk 0:03:00.9]} 1... d5 {[%clk 0:02:59.6]} 2. c4 {[%clk 0:03:00.4]}
2... dxc4 {[%clk 0:02:59.9]} 3. e3 {[%clk 0:03:00.2]} 3... e5 {[%clk 0:02:59.6]}
4. Bxc4 {[%clk 0:03:00.4]} 4... exd4 {[%clk 0:02:59.8]} 5. Nf3 {[%clk
0:03:00.3]} 5... Bd6 {[%clk 0:02:45]} 6. exd4 {[%clk 0:02:58.5]} 6... Nf6 {[%clk
0:02:44.8]} 7. O-O {[%clk 0:02:58.6]} 7... O-O {[%clk 0:02:45]} 8. h3 {[%clk
0:02:59]} 8... h6 {[%clk 0:02:44.4]} 9. Qc2 {[%clk 0:02:58.4]} 9... Nc6 {[%clk
0:02:41.1]} 10. a3 {[%clk 0:02:51.3]} 10... Re8 {[%clk 0:02:31.8]} 11. Nc3
{[%clk 0:02:37.6]} 11... Ne7 {[%clk 0:02:22]} 12. Ne5 {[%clk 0:02:33]} 12...
Bxe5 {[%clk 0:01:46.7]} 13. dxe5 {[%clk 0:02:32.5]} 13... Nfd5 {[%clk
0:01:46.7]} 14. Rd1 {[%clk 0:02:20.2]} 14... c6 {[%clk 0:01:44.2]} 15. f4 {[%clk
0:01:56.8]} 15... Qb6+ {[%clk 0:01:41.5]} 16. Qf2 {[%clk 0:01:56.4]} 16... Qxf2+
{[%clk 0:01:38.3]} 17. Kxf2 {[%clk 0:01:57.3]} 17... Be6 {[%clk 0:01:33]} 18.
Be2 {[%clk 0:01:53.7]} 18... Nxc3 {[%clk 0:01:29.5]} 19. bxc3 {[%clk 0:01:53.7]}
19... Red8 {[%clk 0:01:28.7]} 20. Be3 {[%clk 0:01:53]} 20... Nd5 {[%clk
0:01:16]} 21. c4 {[%clk 0:01:49.8]} 21... Nc3 {[%clk 0:01:02.5]} 22. Rxd8+
{[%clk 0:01:47.2]} 22... Rxd8 {[%clk 0:01:03.4]} 23. Bf1 {[%clk 0:01:40.5]}
23... Ne4+ {[%clk 0:01:01.9]} 24. Ke1 {[%clk 0:01:39.9]} 24... c5 {[%clk
0:00:58.2]} 25. a4 {[%clk 0:01:26.7]} 25... Ng3 {[%clk 0:00:48.6]} 26. Bxc5
{[%clk 0:01:16]} 26... Nxf1 {[%clk 0:00:48]} 27. Kxf1 {[%clk 0:01:16.9]} 27...
Bxc4+ {[%clk 0:00:48]} 28. Kf2 {[%clk 0:01:17.5]} 28... Rd2+ {[%clk 0:00:44.7]}
29. Ke3 {[%clk 0:01:10.2]} 29... Rxg2 {[%clk 0:00:42.4]} 30. Bxa7 {[%clk
0:01:10.1]} 30... Bd5 {[%clk 0:00:36]} 31. Kd4 {[%clk 0:00:43.9]} 31... Bc6
{[%clk 0:00:35.1]} 32. a5 {[%clk 0:00:44.4]} 32... Rf2 {[%clk 0:00:33]} 33. Kc5
{[%clk 0:00:44.6]} 33... Rxf4 {[%clk 0:00:19.6]} 34. a6 {[%clk 0:00:42.3]} 34...
Be4 {[%clk 0:00:17.8]} 35. Bb8 {[%clk 0:00:29.5]} 35... bxa6 {[%clk 0:00:15.6]}
36. e6 {[%clk 0:00:30]} 36... Rf5+ {[%clk 0:00:14.4]} 37. Kd4 {[%clk 0:00:30.2]}
37... fxe6 {[%clk 0:00:12.6]} 38. Kxe4 {[%clk 0:00:29.6]} 38... a5 {[%clk
0:00:13.1]} 39. Be5 {[%clk 0:00:23.6]} 39... Rh5 {[%clk 0:00:12.6]} 40. Ra3
{[%clk 0:00:22.5]} 40... Rh4+ {[%clk 0:00:12.8]} 41. Kf3 {[%clk 0:00:20.4]}
41... a4 {[%clk 0:00:13.1]} 42. Bg3 {[%clk 0:00:13]} 42... Rb4 {[%clk
0:00:10.1]} 43. Kg2 {[%clk 0:00:07.3]} 43... Kf7 {[%clk 0:00:09.7]} 44. Bd6
{[%clk 0:00:07.4]} 44... Rb2+ {[%clk 0:00:08.5]} 45. Kg1 {[%clk 0:00:07.3]}
45... Rb3 {[%clk 0:00:07]} 46. Rxa4 {[%clk 0:00:05.6]} 46... Rxh3 {[%clk
0:00:06.5]} 47. Kg2 {[%clk 0:00:06.5]} 47... Rb3 {[%clk 0:00:06.1]} 48. Rf4+
{[%clk 0:00:06.6]} 48... Kg6 {[%clk 0:00:06]} 49. Be5 {[%clk 0:00:07]} 49... Rb7
{[%clk 0:00:06]} 50. Rf2 {[%clk 0:00:06.7]} 50... h5 {[%clk 0:00:05.8]} 51. Kg3
{[%clk 0:00:06.4]} 51... Kh6 {[%clk 0:00:06.2]} 52. Kh3 {[%clk 0:00:04.4]} 52...
Rb3+ {[%clk 0:00:05.8]} 53. Kh2 {[%clk 0:00:04.6]} 53... Rb5 {[%clk 0:00:05.5]}
54. Bf4+ {[%clk 0:00:05]} 54... g5 {[%clk 0:00:05.1]} 55. Bd2 {[%clk 0:00:05.9]}
55... Rf5 {[%clk 0:00:05.1]} 56. Re2 {[%clk 0:00:06]} 56... e5 {[%clk 0:00:05]}
57. Kh3 {[%clk 0:00:06.4]} 57... Kg6 {[%clk 0:00:05]} 58. Kg2 {[%clk 0:00:06.6]}
58... h4 {[%clk 0:00:04.5]} 59. Bc3 {[%clk 0:00:06.8]} 59... g4 {[%clk
0:00:04.8]} 60. Bxe5 {[%clk 0:00:06.3]} 60... Rf3 {[%clk 0:00:02.7]} 61. Bb2
{[%clk 0:00:05.8]} 61... h3+ {[%clk 0:00:03.1]} 62. Kh2 {[%clk 0:00:05.6]} 62...
Rb3 {[%clk 0:00:03.6]} 63. Bd4 {[%clk 0:00:04.5]} 63... Kf5 {[%clk 0:00:03.2]}
64. Rf2+ {[%clk 0:00:03.8]} 64... Kg5 {[%clk 0:00:03.4]} 65. Bf6+ {[%clk
0:00:02.9]} 65... Kh5 {[%clk 0:00:03.1]} 66. Be5 {[%clk 0:00:03.2]} 66... Kg5
{[%clk 0:00:02.5]} 67. Bg3 {[%clk 0:00:03.3]} 67... Rf3 {[%clk 0:00:01.2]} 68.
Re2 {[%clk 0:00:03.7]} 68... Kf5 {[%clk 0:00:02.1]} 69. Re5+ {[%clk 0:00:03.4]}
69... Kg6 {[%clk 0:00:02.6]} 70. Ra5 {[%clk 0:00:04.1]} 70... Rb3 {[%clk
0:00:01.9]} 71. Bh4 {[%clk 0:00:04.2]} 71... Rb2+ {[%clk 0:00:01.7]} 72. Kg3
{[%clk 0:00:03.1]} 72... Rb4 {[%clk 0:00:02.6]} 73. Rg5+ {[%clk 0:00:02.2]}
73... Kh6 {[%clk 0:00:03.1]} 74. Rc5 {[%clk 0:00:02.5]} 74... Rb3+ {[%clk
0:00:03]} 75. Kxg4 {[%clk 0:00:02.4]} 75... h2 {[%clk 0:00:03.9]} 76. Rc6+
{[%clk 0:00:02.7]} 76... Kg7 {[%clk 0:00:04.1]} 77. Rc1 {[%clk 0:00:03.6]} 77...
Rb2 {[%clk 0:00:04]} 78. Rh1 {[%clk 0:00:03.5]} 78... Kg6 {[%clk 0:00:04.1]} 79.
Bg3 {[%clk 0:00:03.9]} 79... Rb4+ {[%clk 0:00:03.5]} 80. Bf4 {[%clk 0:00:03.8]}
80... Rb2 {[%clk 0:00:03.6]} 81. Bxh2 {[%clk 0:00:04]} 81... Rb4+ {[%clk
0:00:03.6]} 82. Bf4 {[%clk 0:00:04.4]} 82... Ra4 {[%clk 0:00:04.2]} 83. Rh6+
{[%clk 0:00:04.7]} 83... Kg7 {[%clk 0:00:04.5]} 84. Rb6 {[%clk 0:00:05.6]} 84...
Ra5 {[%clk 0:00:04.5]} 85. Be3 {[%clk 0:00:04.1]} 85... Ra4+ {[%clk 0:00:04.7]}
86. Bf4 {[%clk 0:00:03.7]} 86... Rc4 {[%clk 0:00:04.5]} 87. Kf5 {[%clk
0:00:03.5]} 87... Rc5+ {[%clk 0:00:04.5]} 88. Be5+ {[%clk 0:00:04.4]} 88... Kf7
{[%clk 0:00:03.7]} 89. Rf6+ {[%clk 0:00:04.5]} 89... Kg8 {[%clk 0:00:02.3]} 90.
Rg6+ {[%clk 0:00:04.5]} 90... Kf7 {[%clk 0:00:02.2]} 91. Rg7+ {[%clk 0:00:05]}
91... Kf8 {[%clk 0:00:01.5]} 92. Rd7 {[%clk 0:00:04.5]} 92... Rc6 {[%clk
0:00:01.5]} 93. Bd6+ {[%clk 0:00:04.9]} 93... Ke8 {[%clk 0:00:01.8]} 94. Ke6
{[%clk 0:00:05.2]} 1-0

[Event "*** Titled Tuesday Blitz"]
[Site "Chess.com"]
[Date "2020.10.20"]
[Round "11"]
[White "krasavetc"]
[Black "BJthechessgod"]
[Result "0-1"]
[WhiteElo "2303"]
[BlackElo "2215"]
[TimeControl "180+1"]
[EndTime "12:03:00 PDT"]
[Termination "BJthechessgod won by resignation"]

1. Nf3 {[%clk 0:03:00.9]} 1... Nf6 {[%clk 0:02:57.3]} 2. e3 {[%clk 0:03:01.8]}
2... e6 {[%clk 0:02:56.5]} 3. Be2 {[%clk 0:03:02.7]} 3... b6 {[%clk 0:02:56.8]}
4. O-O {[%clk 0:03:03.6]} 4... Bb7 {[%clk 0:02:57.3]} 5. d4 {[%clk 0:03:03.9]}
5... Be7 {[%clk 0:02:57.2]} 6. Nc3 {[%clk 0:03:01.9]} 6... O-O {[%clk
0:02:57.7]} 7. Ne5 {[%clk 0:02:59.3]} 7... d5 {[%clk 0:02:58.6]} 8. f4 {[%clk
0:02:58.6]} 8... c5 {[%clk 0:02:59.5]} 9. dxc5 {[%clk 0:02:56.3]} 9... Bxc5
{[%clk 0:02:59]} 10. g4 {[%clk 0:02:56]} 10... Nbd7 {[%clk 0:02:58.7]} 11. Nxd7
{[%clk 0:02:53.1]} 11... Qxd7 {[%clk 0:02:59.6]} 12. g5 {[%clk 0:02:49.3]} 12...
Ne8 {[%clk 0:02:58.2]} 13. Bd3 {[%clk 0:02:48.2]} 13... Nd6 {[%clk 0:02:57.4]}
14. Qh5 {[%clk 0:02:46.3]} 14... g6 {[%clk 0:02:57.2]} 15. Qh6 {[%clk
0:02:44.4]} 15... d4 {[%clk 0:02:57.7]} 16. Na4 {[%clk 0:02:34.7]} 16... Qxa4
{[%clk 0:02:53.9]} 17. h4 {[%clk 0:02:22.2]} 17... dxe3 {[%clk 0:02:51.6]} 18.
Be2 {[%clk 0:02:20.7]} 18... Qe4 {[%clk 0:02:49.8]} 19. Bf3 {[%clk 0:02:15.6]}
19... e2+ {[%clk 0:02:49.1]} 0-1

[Event "*** Titled Tuesday Blitz"]
[Site "Chess.com"]
[Date "2020.10.20"]
[Round "11"]
[White "MashaFromRussia"]
[Black "Colombiano07"]
[Result "0-1"]
[WhiteElo "2387"]
[BlackElo "2248"]
[TimeControl "180+1"]
[EndTime "12:04:04 PDT"]
[Termination "Colombiano07 won by resignation"]

1. d4 {[%clk 0:03:00.9]} 1... d5 {[%clk 0:02:59.9]} 2. c4 {[%clk 0:03:01.2]}
2... c6 {[%clk 0:03:00.5]} 3. Nf3 {[%clk 0:03:01.3]} 3... Nf6 {[%clk 0:03:01.1]}
4. Nc3 {[%clk 0:03:01.6]} 4... a6 {[%clk 0:03:01.7]} 5. c5 {[%clk 0:03:00.1]}
5... Nbd7 {[%clk 0:03:01]} 6. Bf4 {[%clk 0:02:59.2]} 6... Nh5 {[%clk 0:03:01.2]}
7. Bd2 {[%clk 0:02:57]} 7... Nhf6 {[%clk 0:03:01.2]} 8. h3 {[%clk 0:02:53.7]}
8... e5 {[%clk 0:02:58.1]} 9. dxe5 {[%clk 0:02:53.4]} 9... Ne4 {[%clk
0:02:58.3]} 10. b4 {[%clk 0:02:41.3]} 10... Qe7 {[%clk 0:02:50.6]} 11. Nxe4
{[%clk 0:02:30.5]} 11... dxe4 {[%clk 0:02:51.5]} 12. Ng5 {[%clk 0:02:30.8]}
12... Qxe5 {[%clk 0:02:47.5]} 13. Qb1 {[%clk 0:02:20.1]} 13... Nf6 {[%clk
0:02:39.6]} 14. h4 {[%clk 0:02:02.1]} 14... a5 {[%clk 0:02:34.6]} 15. b5 {[%clk
0:01:56.5]} 15... Bxc5 {[%clk 0:02:33.4]} 16. g3 {[%clk 0:01:46.3]} 16... e3
{[%clk 0:02:31.8]} 17. Bxe3 {[%clk 0:01:44]} 17... Bxe3 {[%clk 0:02:31.5]} 18.
fxe3 {[%clk 0:01:44.9]} 18... Qxg3+ {[%clk 0:02:31.5]} 19. Kd2 {[%clk
0:01:43.6]} 19... O-O {[%clk 0:02:31.3]} 0-1